[Event "GAMMA Reykjavik Open 2019"]
[Site "Reykjavik"]
[Date "2019.04.10"]
[Round "4.28"]
[White "Le Goff, Ronan"]
[Black "Vaishali R"]
[Result "1-0"]
[ECO "A13"]
[WhiteElo "2186"]
[BlackElo "2353"]
[Annotator "NA"]
[PlyCount "61"]
[EventDate "2019.04.04"]
[EventType "swiss"]
[EventCountry "ISL"]
[SourceTitle "playchess.com"]
[Source "ChessBase"]
[SourceQuality "1"]
[TimeControl "40/5400+30:1800+30"]

1. Nf3 {[%emt 0:00:00]} d5 {[%emt 0:00:56]} 2. e3 {[%emt 0:00:00]} Nf6 {[%emt 0:00:30]} 3. c4 {[%emt 0:00:08]} e6 {[%emt 0:00:18]} 4. b3 {[%emt 0:00:15]} c5 {[%emt 0:00:06]} 5. Bb2 {[%emt 0:00:09]} Nc6 {[%emt 0:00:06]} 6. cxd5 {[%emt 0:00:19]} exd5 {[%emt 0:00:06]} 7. Be2 {[%emt 0:00:23]} Bd6 {[%emt 0:05:26]} 8. O-O {[%emt 0:00:12]} O-O {[%emt 0:00:23]} 9. Nc3 {[%emt 0:00:56]} Re8 {[%emt 0:12:28]} 10. Rc1 {[%emt 0:01:52]} Bg4 {[%emt 0:03:15]} 11. Na4 {[%emt 0:09:19]} Nd7 {[%emt 0:10:31]} 12. h3 {[%emt 0:19:20]} Bh5 {[%emt 0:03:01]} 13. d4 {[%emt 0:03:54]} cxd4 {[%emt 0:04:31]} 14. Nxd4 {[%emt 0:01:00]} Bxe2 {[%emt 0:00:16]} 15. Qxe2 {[%emt 0:03:01]} Nxd4 {[%emt 0:19:29]} 16. Bxd4 {[%emt 0:02:52]} Ne5 {[%emt 0:00:40]} 17. Rfd1 {[%emt 0:04:27]} Qh4 {[%emt 0:14:37]} 18. Nc3 {[%emt 0:07:17]} Nc6 {[%emt 0:06:55]} 19. Nb5 {[%emt 0:08:22]} Re6 {[%emt 0:04:03]} 20. Qg4 {[%emt 0:08:32]} Qxg4 {[%emt 0:06:12]} 21. hxg4 {[%emt 0:00:15]} Be5 {[%emt 0:02:06]} 22. Bxe5 {[%emt 0:02:39]} Rxe5 {[%emt 0:00:02]} 23. Nd4 {[%emt 0:00:17]} Rc8 {[%emt 0:04:19]} 24. Nf3 {[%emt 0:05:34]} Re4 {[%emt 0:00:55]} 25. Rxd5 {[%emt 0:00:10]} Rxg4 {[%emt 0:00:08]} 26. Ne5 {[%emt 0:01:34]} Rb4 {[%emt 0:00:59]} 27. Nxc6 {[%emt 0:00:49]} bxc6 {[%emt 0:00:01]} 28. Rxc6 {[%emt 0:00:13]} Ra8 {[%emt 0:00:37]} 29. Rc7 {[%emt 0:00:18]} a6 {[%emt 0:00:38]} 30. Ra7 {[%emt 0:03:14]} Rbb8 {[%emt 0:00:24]} 31. Rdd7 {[%emt 0:00:11]} 1-0

[Event "GAMMA Reykjavik Open 2019"]
[Site "Reykjavik"]
[Date "2019.04.10"]
[Round "4.29"]
[White "Finnbogadottir, Tinna Kristin"]
[Black "Borocz, Istvan"]
[Result "0-1"]
[ECO "B13"]
[WhiteElo "1849"]
[BlackElo "2350"]
[Annotator "NA"]
[PlyCount "70"]
[EventDate "2019.04.04"]
[EventType "swiss"]
[EventCountry "ISL"]
[SourceTitle "playchess.com"]
[Source "ChessBase"]
[SourceQuality "1"]
[TimeControl "40/5400+30:1800+30"]

1. e4 {[%emt 0:00:19]} c6 {[%emt 0:00:00]} 2. Nf3 {[%emt 0:01:54]} d5 {[%emt 0:05:11]} 3. exd5 {[%emt 0:01:56]} cxd5 {[%emt 0:00:06]} 4. d4 {[%emt 0:00:11]} Nf6 {[%emt 0:00:20]} 5. Bd3 {[%emt 0:01:05]} Nc6 {[%emt 0:00:09]} 6. c3 {[%emt 0:00:19]} Bg4 {[%emt 0:01:50]} 7. Bf4 {[%emt 0:00:38]} Qb6 {[%emt 0:03:34]} 8. b4 {[%emt 0:03:21]} e6 {[%emt 0:03:38]} 9. O-O {[%emt 0:02:17]} Rc8 {[%emt 0:13:33]} 10. Qb3 {[%emt 0:01:55]} Bxf3 {[%emt 0:00:43]} 11. gxf3 {[%emt 0:00:03]} Be7 {[%emt 0:01:08]} 12. Nd2 {[%emt 0:01:25]} O-O {[%emt 0:03:10]} 13. Kh1 {[%emt 0:01:21]} Nh5 {[%emt 0:02:57]} 14. Bg3 {[%emt 0:04:18]} Bg5 {[%emt 0:04:16]} 15. Qd1 {[%emt 0:01:20]} Nf4 {[%emt 0:08:50]} 16. Bc2 {[%emt 0:01:52]} Ne7 {[%emt 0:01:08]} 17. Nb1 {[%emt 0:00:59]} Neg6 {[%emt 0:02:24]} 18. Qd2 {[%emt 0:03:56]} Qd8 {[%emt 0:03:14]} 19. h4 {[%emt 0:01:24]} Bh6 {[%emt 0:02:22]} 20. Qe3 {[%emt 0:09:27]} Qf6 {[%emt 0:03:57]} 21. Nd2 {[%emt 0:02:37]} Nxh4 {[%emt 0:01:59]} 22. Rg1 {[%emt 0:02:29]} Nfg6 {[%emt 0:05:42]} 23. f4 {[%emt 0:01:20]} Nxf4 {[%emt 0:04:21]} 24. Nf1 {[%emt 0:04:36]} Nfg6 {[%emt 0:01:41]} 25. Qd3 {[%emt 0:02:26]} Qf3+ {[%emt 0:00:47]} 26. Qxf3 {[%emt 0:00:05]} Nxf3 {[%emt 0:00:07]} 27. Rg2 {[%emt 0:00:27]} Rxc3 {[%emt 0:00:18]} 28. Ba4 {[%emt 0:01:03]} Nxd4 {[%emt 0:02:23]} 29. Nh2 {[%emt 0:00:51]} Rfc8 {[%emt 0:00:46]} 30. Ng4 {[%emt 0:00:49]} Rc1+ {[%emt 0:01:21]} 31. Rxc1 {[%emt 0:00:06]} Rxc1+ {[%emt 0:00:13]} 32. Kh2 {[%emt 0:00:23]} Nf3+ {[%emt 0:00:52]} 33. Kh3 {[%emt 0:00:11]} Rh1+ {[%emt 0:01:31]} 34. Nh2 {[%emt 0:00:15]} f5 {[%emt 0:04:03]} 35. Bb5 {[%emt 0:00:31]} Ng5# {[%emt 0:00:24]} 0-1

[Event "GAMMA Reykjavik Open 2019"]
[Site "Reykjavik"]
[Date "2019.04.11"]
[Round "5.4"]
[White "Cornette, Matthieu"]
[Black "Lupulescu, Constantin"]
[Result "0-1"]
[ECO "B12"]
[WhiteElo "2556"]
[BlackElo "2634"]
[Annotator "RC"]
[PlyCount "78"]
[EventDate "2019.04.04"]
[EventType "swiss"]
[EventCountry "ISL"]
[SourceTitle "playchess.com"]
[Source "ChessBase"]
[SourceQuality "1"]
[TimeControl "40/5400+30:1800+30"]

1. e4 {[%emt 0:00:00]} c6 {[%emt 0:00:00]} 2. d4 {[%emt 0:00:09]} d5 {[%emt 0:00:00]} 3. e5 {[%emt 0:00:45]} c5 {[%emt 0:00:17]} 4. dxc5 {[%emt 0:00:43]} e6 {[%emt 0:00:04]} 5. a3 {[%emt 0:00:51]} Bxc5 {[%emt 0:00:27]} 6. Nf3 {[%emt 0:00:24]} Ne7 {[%emt 0:00:51]} 7. Bd3 {[%emt 0:01:15]} Ng6 {[%emt 0:01:39]} 8. O-O {[%emt 0:00:20]} Qc7 {[%emt 0:03:04]} 9. Re1 {[%emt 0:02:13]} O-O {[%emt 0:01:15]} 10. h4 {[%emt 0:04:05]} Nc6 {[%emt 0:07:51]} 11. b4 {[%emt 0:00:32]} Be7 {[%emt 0:06:42]} 12. Bb2 {[%emt 0:00:14]} f5 {[%emt 0:04:39]} 13. g3 {[%emt 0:04:55]} a6 {[%emt 0:17:58]} 14. h5 {[%emt 0:09:04]} Nh8 {[%emt 0:00:21]} 15. c4 {[%emt 0:02:47]} dxc4 {[%emt 0:06:59]} 16. Bxc4 {[%emt 0:01:43]} b5 {[%emt 0:00:20]} 17. Bb3 {[%emt 0:03:42]} Nf7 {[%emt 0:05:33]} 18. Nc3 {[%emt 0:03:09]} Qb7 {[%emt 0:07:31]} 19. Qe2 {[%emt 0:22:28]} Bd7 {[%emt 0:08:30]} 20. Rad1 {[%emt 0:10:48]} Rad8 {[%emt 0:00:10]} 21. Qe3 {[%emt 0:01:50]} Bc8 {[%emt 0:07:36]} 22. Ne2 {[%emt 0:00:32]} h6 {[%emt 0:02:31]} 23. Nf4 {[%emt 0:03:46]} Bg5 {[%emt 0:00:44]} 24. Qc3 {[%emt 0:02:08]} Bxf4 {[%emt 0:00:53]} 25. gxf4 {[%emt 0:00:03]} Rxd1 {[%emt 0:01:31]} 26. Rxd1 {[%emt 0:00:05]} Rd8 {[%emt 0:00:28]} 27. Rc1 {[%emt 0:01:57]} Bd7 {[%emt 0:02:31]} 28. Nh4 {[%emt 0:02:49]} Ne7 {[%emt 0:01:21]} 29. Rd1 {[%emt 0:04:15]} Bc6 {[%emt 0:01:39]} 30. Rxd8+ {[%emt 0:02:31]} Nxd8 {[%emt 0:01:42]} 31. Qc5 {[%emt 0:02:51]} Kf7 {[%emt 0:01:11]} 32. Qd6 {[%emt 0:02:25]} Bd5 {[%emt 0:02:51]} 33. Bxd5 {[%emt 0:05:23]} Qxd5 {[%emt 0:00:14]} 34. Bd4 {[%emt 0:00:37]} Ndc6 {[%emt 0:02:19]} 35. Bc5 {[%emt 0:00:30]} Ke8 {[%emt 0:00:29]} 36. Kh2 {[%emt 0:02:45]} Qxd6 {[%emt 0:01:06]} 37. exd6 {[%emt 0:00:09]} Nd5 {[%emt 0:00:23]} 38. Ng6 {[%emt 0:00:17]} Nf6 {[%emt 0:00:35]} 39. Nf8 {[%emt 0:03:56]} Kxf8 {[%emt 0:00:31]} 0-1

[Event "GAMMA Reykjavik Open 2019"]
[Site "Reykjavik"]
[Date "2019.04.11"]
[Round "5.26"]
[White "Thorfinnsson, Bjorn"]
[Black "Munshi, Aditya"]
[Result "1-0"]
[ECO "D03"]
[WhiteElo "2399"]
[BlackElo "2113"]
[Annotator "NA"]
[PlyCount "53"]
[EventDate "2019.04.04"]
[EventType "swiss"]
[EventCountry "ISL"]
[SourceTitle "playchess.com"]
[Source "ChessBase"]
[SourceQuality "1"]
[TimeControl "40/5400+30:1800+30"]

1. d4 {[%emt 0:15:07]} Nf6 {[%emt 0:00:00]} 2. Nf3 {[%emt 0:00:19]} e6 {[%emt 0:00:42]} 3. Bg5 {[%emt 0:00:11]} d5 {[%emt 0:03:32]} 4. e3 {[%emt 0:00:11]} h6 {[%emt 0:01:41]} 5. Bh4 {[%emt 0:00:16]} c6 {[%emt 0:04:43]} 6. Nbd2 {[%emt 0:02:07]} Nbd7 {[%emt 0:02:07]} 7. Ne5 {[%emt 0:01:59]} Be7 {[%emt 0:02:15]} 8. f4 {[%emt 0:00:41]} Nxe5 {[%emt 0:08:00]} 9. fxe5 {[%emt 0:00:13]} Nd7 {[%emt 0:00:37]} 10. Bg3 {[%emt 0:00:37]} Bh4 {[%emt 0:05:19]} 11. Qg4 {[%emt 0:03:41]} Bxg3+ {[%emt 0:00:54]} 12. hxg3 {[%emt 0:00:04]} g6 {[%emt 0:07:07]} 13. Bd3 {[%emt 0:00:07]} h5 {[%emt 0:01:17]} 14. Qf4 {[%emt 0:00:42]} b6 {[%emt 0:04:12]} 15. Nf3 {[%emt 0:06:08]} a5 {[%emt 0:01:33]} 16. O-O-O {[%emt 0:04:33]} Ba6 {[%emt 0:01:27]} 17. Bxa6 {[%emt 0:01:28]} Rxa6 {[%emt 0:00:02]} 18. g4 {[%emt 0:01:21]} Qe7 {[%emt 0:05:08]} 19. gxh5 {[%emt 0:01:44]} Rxh5 {[%emt 0:01:42]} 20. g4 {[%emt 0:06:58]} Rxh1 {[%emt 0:00:09]} 21. Rxh1 {[%emt 0:00:04]} Nf8 {[%emt 0:00:40]} 22. Rh8 {[%emt 0:00:44]} Ra8 {[%emt 0:01:08]} 23. Ng5 {[%emt 0:00:49]} Rc8 {[%emt 0:13:00]} 24. Rg8 {[%emt 0:03:25]} c5 {[%emt 0:02:12]} 25. dxc5 {[%emt 0:09:43]} bxc5 {[%emt 0:01:17]} 26. Qa4+ {[%emt 0:08:30]} Qd7 {[%emt 0:01:04]} 27. Rxf8+ {[%emt 0:00:12]} 1-0

[Event "GAMMA Reykjavik Open 2019"]
[Site "Reykjavik"]
[Date "2019.04.11"]
[Round "5.30"]
[White "Alashtar, Aasef"]
[Black "Sowray, Peter J"]
[Result "0-1"]
[ECO "A48"]
[WhiteElo "1905"]
[BlackElo "2356"]
[Annotator "NA RC"]
[PlyCount "86"]
[EventDate "2019.04.04"]
[EventType "swiss"]
[EventCountry "ISL"]
[SourceTitle "playchess.com"]
[Source "ChessBase"]
[SourceQuality "1"]
[TimeControl "40/5400+30:1800+30"]

1. b3 {[%emt 0:00:00]} d6 {[%emt 0:00:39]} 2. Bb2 {[%emt 0:00:00]} Nd7 {[%emt 0:00:10]} 3. d4 {[%emt 0:03:55]} Ngf6 {[%emt 0:01:01]} 4. Nf3 {[%emt 0:00:28]} g6 {[%emt 0:01:32]} 5. Nbd2 {[%emt 0:01:07]} Bg7 {[%emt 0:02:04]} 6. e3 {[%emt 0:03:15]} O-O {[%emt 0:01:38]} 7. Bd3 {[%emt 0:01:18] A48: 1 d4 Nf6 2 Nf3 g6: Torre, London and Colle Systems} (7. Be2 c5 8. O-O b6 9. c4 e6 10. dxc5 bxc5 11. Qc2 Bb7 12. Rfd1 h6 13. Bd3 Re8 14. Rab1 Qc7 15. Ne4 Rad8 16. h3 {0-1 (122) Camacho Collados,M (2451)-Spraggett,K (2561) Lisbon 2014}) 7... e5 {[%emt 0:08:46]} 8. dxe5 {[%emt 0:10:59]} Ng4 {[%emt 0:00:36]} 9. O-O {[%emt 0:05:50]} Ndxe5 {[%emt 0:04:09]} 10. Nxe5 {[%emt 0:03:52]} Nxe5 {[%emt 0:01:27]} 11. Rb1 {[%emt 0:00:47]} Nxd3 {[%emt 0:11:24]} 12. cxd3 {[%emt 0:00:33]} Be6 $146 {[%emt 0:05:28]} ({Predecessor:} 12... b6 13. Bxg7 Kxg7 14. Qc2 Bb7 15. e4 Rc8 16. Qc3+ Kg8 17. Rbe1 {0-1 (48) Putrenko,K (1876)-Samoun,F (2321) St Petersburg 2017}) 13. Qf3 {[%emt 0:12:04]} c6 {[%emt 0:01:38]} 14. Bxg7 {[%emt 0:09:34]} Kxg7 {[%emt 0:00:37]} 15. Qg3 {[%emt 0:05:03]} Qe7 {[%emt 0:05:51]} 16. e4 {[%emt 0:07:25]} Rad8 {[%emt 0:04:37]} 17. d4 {[%emt 0:05:50]} f5 {[%emt 0:08:03]} 18. Qc3 {[%emt 0:02:02]} Bc8 {[%emt 0:12:32]} 19. Rfe1 {[%emt 0:02:30]} fxe4 {[%emt 0:03:29]} 20. Rxe4 {[%emt 0:04:31]} Qf6 {[%emt 0:01:44]} 21. Qe3 {[%emt 0:00:32]} Rf7 {[%emt 0:04:32]} 22. Re1 {[%emt 0:01:18]} Rdf8 {[%emt 0:01:30]} 23. f3 {[%emt 0:05:53]} Bf5 {[%emt 0:02:39]} 24. Re7 {[%emt 0:00:19]} Rxe7 {[%emt 0:01:19]} 25. Qxe7+ {[%emt 0:00:02]} Qxe7 {[%emt 0:00:13]} 26. Rxe7+ {[%emt 0:00:01]} Rf7 {[%emt 0:00:02]} 27. Re8 {[%emt 0:02:21]} Rf8 {[%emt 0:05:56]} 28. Rxf8 $11 {[%emt 0:02:34]} Kxf8 {[%emt 0:00:01]} 29. g4 {[%emt 0:00:53]} Be6 {[%emt 0:01:40]} 30. Kf2 {[%emt 0:01:04]} Ke7 {[%emt 0:01:16]} 31. Ke3 {[%emt 0:01:49]} a5 {[%emt 0:00:43]} 32. a3 {[%emt 0:02:37]} c5 {[%emt 0:01:41]} 33. h4 {[%emt 0:01:17]} Kd7 {[%emt 0:01:26]} 34. Kd3 {[%emt 0:04:00]} b5 {[%emt 0:02:02]} 35. Kc3 {[%emt 0:01:03]} Kc6 {[%emt 0:00:44]} 36. dxc5 {[%emt 0:00:23]} dxc5 {[%emt 0:00:20]} 37. Kd3 {[%emt 0:00:19]} Bxb3 {[%emt 0:01:44]} 38. Nxb3 {[%emt 0:00:03]} c4+ {[%emt 0:00:04]} 39. Kc3 {[%emt 0:00:23]} cxb3 {[%emt 0:00:02]} 40. Kxb3 {[%emt 0:00:00]} Kd5 {[%emt 0:00:00]} 41. f4 {[%emt 0:10:29]} Ke4 {[%emt 0:02:00]} 42. f5 {[%emt 0:00:17]} gxf5 {[%emt 0:00:44]} 43. g5 {[%emt 0:01:55]} Kf4 {[%emt 0:00:16]} 0-1

[Event "GAMMA Reykjavik Open 2019"]
[Site "Reykjavik"]
[Date "2019.04.13"]
[Round "6.1"]
[White "Hovhannisyan, Robert"]
[Black "Firouzja, Alireza"]
[Result "1/2-1/2"]
[ECO "B92"]
[WhiteElo "2630"]
[BlackElo "2669"]
[Annotator "RC"]
[PlyCount "62"]
[EventDate "2019.04.04"]
[EventType "swiss"]
[EventCountry "ISL"]
[SourceTitle "playchess.com"]
[Source "ChessBase"]
[SourceQuality "1"]
[TimeControl "40/5400+30:1800+30"]

1. e4 {[%emt 0:01:36]} c5 {[%emt 0:00:00]} 2. Nf3 {[%emt 0:00:20]} d6 {[%emt 0:00:00]} 3. d4 {[%emt 0:00:22]} cxd4 {[%emt 0:00:00]} 4. Nxd4 {[%emt 0:00:06]} Nf6 {[%emt 0:00:04]} 5. Nc3 {[%emt 0:00:04]} a6 {[%emt 0:00:06]} 6. Be2 {[%emt 0:00:31]} e5 {[%emt 0:00:11]} 7. Nf3 {[%emt 0:00:26]} Be7 {[%emt 0:00:19]} 8. Bg5 {[%emt 0:00:18]} Be6 {[%emt 0:00:12]} 9. Bxf6 {[%emt 0:01:01]} Bxf6 {[%emt 0:00:09]} 10. O-O {[%emt 0:01:49]} O-O {[%emt 0:02:33]} 11. Nd5 {[%emt 0:00:33]} Nd7 {[%emt 0:01:06]} 12. Bc4 {[%emt 0:05:29]} Rc8 {[%emt 0:01:45]} 13. Qe2 {[%emt 0:02:09]} Nb6 {[%emt 0:08:57]} 14. Nxb6 {[%emt 0:00:59]} Qxb6 {[%emt 0:00:10]} 15. Bb3 {[%emt 0:00:57]} Qc6 {[%emt 0:01:53]} 16. c3 {[%emt 0:11:58]} d5 {[%emt 0:07:47]} 17. exd5 {[%emt 0:06:54]} Bxd5 {[%emt 0:00:08]} 18. Bxd5 {[%emt 0:01:08]} Qxd5 {[%emt 0:00:09]} 19. Rfd1 {[%emt 0:00:29]} Qc6 {[%emt 0:02:09]} 20. Rd2 {[%emt 0:08:57]} Rfe8 {[%emt 0:07:42]} 21. Rad1 {[%emt 0:04:06]} Qa4 {[%emt 0:01:36]} 22. b3 {[%emt 0:10:24]} Qf4 {[%emt 0:09:09]} 23. g3 {[%emt 0:03:10]} Qf5 {[%emt 0:03:51]} 24. c4 {[%emt 0:02:13]} h5 {[%emt 0:01:25]} 25. Ne1 {[%emt 0:03:34]} h4 {[%emt 0:01:49]} 26. Ng2 {[%emt 0:02:11]} hxg3 {[%emt 0:04:19]} 27. hxg3 {[%emt 0:00:45]} Bg5 {[%emt 0:00:15]} 28. Ne3 {[%emt 0:05:10]} Bxe3 {[%emt 0:09:09]} 29. Qxe3 {[%emt 0:00:17]} Re6 {[%emt 0:01:16]} 30. Rd5 {[%emt 0:03:43]} Rce8 {[%emt 0:01:40]} 31. Qd3 {[%emt 0:01:33]} Qg4 {[%emt 0:06:28]} 1/2-1/2

[Event "GAMMA Reykjavik Open 2019"]
[Site "Reykjavik"]
[Date "2019.04.13"]
[Round "6.11"]
[White "Tomazini, Zan"]
[Black "Fier, Alexandr"]
[Result "0-1"]
[ECO "B22"]
[WhiteElo "2390"]
[BlackElo "2570"]
[Annotator "ChessBase"]
[PlyCount "78"]
[EventDate "2019.04.04"]
[EventType "swiss"]
[EventCountry "ISL"]
[SourceTitle "playchess.com"]
[Source "ChessBase"]
[SourceQuality "1"]
[TimeControl "40/5400+30:1800+30"]

1. e4 {[%emt 0:02:24]} c5 {[%emt 0:00:00]} 2. Nf3 {[%emt 0:00:13]} Nc6 {[%emt 0:00:00]} 3. c3 {[%emt 0:00:37]} Nf6 {[%emt 0:00:00]} 4. e5 {[%emt 0:00:03]} Nd5 {[%emt 0:00:00]} 5. d4 {[%emt 0:00:04]} cxd4 {[%emt 0:00:00]} 6. cxd4 {[%emt 0:00:43]} d6 {[%emt 0:00:00]} 7. Bc4 {[%emt 0:01:10]} Nb6 {[%emt 0:00:02]} 8. Bb3 {[%emt 0:00:09]} dxe5 {[%emt 0:00:05]} 9. d5 {[%emt 0:00:05]} Na5 {[%emt 0:00:04]} 10. Nc3 {[%emt 0:00:06]} f6 {[%emt 0:00:03]} 11. O-O {[%emt 0:01:35]} Nxb3 {[%emt 0:00:06]} 12. Qxb3 {[%emt 0:04:03]} e6 {[%emt 0:00:04]} 13. dxe6 {[%emt 0:07:24]} Qd6 {[%emt 0:00:04]} 14. Nb5 {[%emt 0:06:55]} Qc6 {[%emt 0:00:06]} 15. Re1 {[%emt 0:02:03]} a6 {[%emt 0:00:04]} 16. Nbd4 {[%emt 0:07:55]} exd4 {[%emt 0:00:07]} 17. e7 {[%emt 0:00:08]} Bxe7 {[%emt 0:02:36]} 18. Bf4 {[%emt 0:01:41]} Nc4 {[%emt 0:07:42]} 19. Nxd4 {[%emt 0:05:24]} Qc5 {[%emt 0:00:43]} 20. Rac1 {[%emt 0:03:49]} b5 {[%emt 0:00:19]} 21. Qf3 {[%emt 0:02:02]} Qxd4 {[%emt 0:10:53]} 22. Qxa8 {[%emt 0:03:59]} O-O {[%emt 0:01:19]} 23. Rxe7 {[%emt 0:03:24]} Qxf4 {[%emt 0:00:04]} 24. Qd5+ {[%emt 0:10:53]} Kh8 {[%emt 0:02:08]} 25. Rd1 {[%emt 0:01:57]} h6 {[%emt 0:01:09]} 26. b3 {[%emt 0:06:29]} Ne5 {[%emt 0:00:37]} 27. h3 {[%emt 0:01:50]} Bf5 {[%emt 0:01:17]} 28. Rd4 {[%emt 0:04:24]} Qc1+ {[%emt 0:01:35]} 29. Kh2 {[%emt 0:01:40]} Qe1 {[%emt 0:03:48]} 30. Rf4 {[%emt 0:07:59]} Qb1 {[%emt 0:00:40]} 31. Ra7 {[%emt 0:03:17]} Rc8 {[%emt 0:10:09]} 32. Rxa6 {[%emt 0:09:11]} Rc1 {[%emt 0:00:32]} 33. Ra8+ {[%emt 0:00:00]} Kh7 {[%emt 0:00:04]} 34. g4 {[%emt 0:02:04]} Be6 {[%emt 0:00:43]} 35. Qb7 {[%emt 0:00:36]} Nc6 {[%emt 0:00:46]} 36. Rxf6 {[%emt 0:00:54]} Rh1+ {[%emt 0:00:06]} 37. Kg3 {[%emt 0:00:14]} Qg1+ {[%emt 0:00:05]} 38. Kf3 {[%emt 0:00:35]} Bd5+ {[%emt 0:00:12]} 39. Ke3 {[%emt 0:00:45]} Qc1+ {[%emt 0:00:07] Kd4 [%emt 00:00:08]} 0-1

[Event "GAMMA Reykjavik Open 2019"]
[Site "Reykjavik"]
[Date "2019.04.13"]
[Round "6.14"]
[White "Ragnarsson, Dagur"]
[Black "Cornette, Matthieu"]
[Result "1-0"]
[ECO "E32"]
[WhiteElo "2380"]
[BlackElo "2556"]
[Annotator "ChessBase"]
[PlyCount "145"]
[EventDate "2019.04.04"]
[EventType "swiss"]
[EventCountry "ISL"]
[SourceTitle "playchess.com"]
[Source "ChessBase"]
[SourceQuality "1"]
[TimeControl "40/5400+30:1800+30"]

1. d4 {[%emt 0:00:00]} Nf6 {[%emt 0:00:00]} 2. c4 {[%emt 0:00:00]} e6 {[%emt 0:00:00]} 3. Nc3 {[%emt 0:00:00]} Bb4 {[%emt 0:00:00]} 4. Qc2 {[%emt 0:00:23]} O-O {[%emt 0:01:32]} 5. Bg5 {[%emt 0:02:40]} h6 {[%emt 0:03:57]} 6. Bxf6 {[%emt 0:02:54]} Qxf6 {[%emt 0:00:14]} 7. a3 {[%emt 0:02:06]} Bxc3+ {[%emt 0:00:46]} 8. Qxc3 {[%emt 0:00:07]} d6 {[%emt 0:03:21]} 9. e3 {[%emt 0:04:10]} Nc6 {[%emt 0:04:08]} 10. Bd3 {[%emt 0:02:43]} e5 {[%emt 0:03:44]} 11. Ne2 {[%emt 0:00:16]} exd4 {[%emt 0:10:01]} 12. exd4 {[%emt 0:01:35]} a5 {[%emt 0:01:20]} 13. O-O {[%emt 0:13:39]} a4 {[%emt 0:03:24]} 14. Rad1 {[%emt 0:10:03]} Re8 {[%emt 0:04:08]} 15. Qc2 {[%emt 0:11:42]} Bd7 {[%emt 0:02:55]} 16. Be4 {[%emt 0:01:49]} Na5 {[%emt 0:03:46]} 17. Nc3 {[%emt 0:06:20]} Qd8 {[%emt 0:13:59]} 18. c5 {[%emt 0:09:43]} Qb8 {[%emt 0:07:34]} 19. Bd5 {[%emt 0:05:48]} Qa7 {[%emt 0:07:18]} 20. Ne4 {[%emt 0:02:51]} Be6 {[%emt 0:06:00]} 21. Bxe6 {[%emt 0:00:53]} Rxe6 {[%emt 0:00:02]} 22. d5 {[%emt 0:00:28]} Rg6 {[%emt 0:01:09]} 23. cxd6 {[%emt 0:00:24]} cxd6 {[%emt 0:00:05]} 24. Qxa4 {[%emt 0:00:55]} Qa6 {[%emt 0:00:03]} 25. Rc1 {[%emt 0:04:39]} b5 {[%emt 0:00:10]} 26. Qb4 {[%emt 0:01:06]} Nc4 {[%emt 0:00:38]} 27. Nc3 {[%emt 0:02:30]} Qc8 {[%emt 0:02:17]} 28. Ne2 {[%emt 0:02:50]} Rb8 {[%emt 0:02:36]} 29. Ng3 {[%emt 0:02:02]} Qd8 {[%emt 0:00:53]} 30. Rfe1 {[%emt 0:01:05]} Ne5 {[%emt 0:08:22]} 31. Rc3 {[%emt 0:01:31]} Qb6 {[%emt 0:01:54]} 32. Nf5 {[%emt 0:03:09]} Rf6 {[%emt 0:01:18]} 33. Qe4 {[%emt 0:00:43]} Re8 {[%emt 0:01:22]} 34. Ree3 {[%emt 0:01:27]} g6 {[%emt 0:01:36]} 35. Qd4 {[%emt 0:01:22]} Rb8 {[%emt 0:02:55]} 36. Qxb6 {[%emt 0:00:13]} Rxb6 {[%emt 0:00:07]} 37. Nxd6 {[%emt 0:01:05]} b4 {[%emt 0:02:53]} 38. Rc8+ {[%emt 0:00:35]} Kh7 {[%emt 0:00:02]} 39. a4 {[%emt 0:01:51]} Ng4 {[%emt 0:01:03]} 40. Ne4 {[%emt 0:00:00]} Rxf2 {[%emt 0:00:00]} 41. Nxf2 {[%emt 0:00:57]} Nxe3 {[%emt 0:00:35]} 42. Rc6 {[%emt 0:00:20]} Nxd5 {[%emt 0:00:17]} 43. Rxb6 {[%emt 0:00:05]} Nxb6 {[%emt 0:00:04]} 44. a5 {[%emt 0:00:11]} Nd5 {[%emt 0:03:49]} 45. Nd3 {[%emt 0:00:29]} Kg7 {[%emt 0:00:21]} 46. a6 {[%emt 0:00:09]} b3 {[%emt 0:00:12]} 47. a7 {[%emt 0:01:25]} Nc7 {[%emt 0:00:17]} 48. Kf2 {[%emt 0:02:34]} Kf6 {[%emt 0:00:09]} 49. Ke3 {[%emt 0:00:05]} Ke6 {[%emt 0:00:18]} 50. Nc5+ {[%emt 0:00:18]} Kd5 {[%emt 0:00:42]} 51. Nxb3 {[%emt 0:00:06]} Kc6 {[%emt 0:00:15]} 52. Ke4 {[%emt 0:01:22]} f6 {[%emt 0:01:33]} 53. Nd4+ {[%emt 0:00:58]} Kb7 {[%emt 0:00:19]} 54. Nf3 {[%emt 0:00:28]} Kxa7 {[%emt 0:02:40]} 55. Nh4 {[%emt 0:00:06]} g5 {[%emt 0:00:11]} 56. Nf5 {[%emt 0:00:37]} h5 {[%emt 0:00:04]} 57. Ng7 {[%emt 0:00:28]} h4 {[%emt 0:00:07]} 58. Nh5 {[%emt 0:00:16]} Ne6 {[%emt 0:00:46]} 59. Nxf6 {[%emt 0:01:16]} Kb6 {[%emt 0:01:07]} 60. Ke5 {[%emt 0:00:16]} Nc5 {[%emt 0:03:19]} 61. Kf5 {[%emt 0:00:34]} Nd3 {[%emt 0:00:04]} 62. Kxg5 {[%emt 0:00:18]} Ne1 {[%emt 0:00:03]} 63. Nd5+ {[%emt 0:00:11]} Kc5 {[%emt 0:00:40]} 64. Nf4 {[%emt 0:00:22]} h3 {[%emt 0:00:05]} 65. gxh3 {[%emt 0:02:06]} Nf3+ {[%emt 0:00:03]} 66. Kf5 {[%emt 0:00:25]} Nxh2 {[%emt 0:00:06]} 67. h4 {[%emt 0:00:17]} Nf1 {[%emt 0:00:04]} 68. h5 {[%emt 0:00:58]} Ng3+ {[%emt 0:00:24]} 69. Kg6 {[%emt 0:00:05]} Nxh5 {[%emt 0:00:34]} 70. Kxh5 {[%emt 0:00:05]} Kc4 {[%emt 0:00:02]} 71. Kg4 {[%emt 0:00:08]} Kb3 {[%emt 0:00:03]} 72. Nd3 {[%emt 0:00:04]} Kc2 {[%emt 0:00:08]} 73. b4 {[%emt 0:00:04]} 1-0